bitfinex/quotes_SOLUSD_20250416
["timestamp","ask_amount","ask_price","bid_price","bid_amount"]
[1744792867232,0.03,125.03,125.02,26.0]
[1744792867426,0.03,125.03,125.0,8.0]
[1744792867829,14.58972404,125.03,124.99,34.00047286]
[1744792868055,0.03,125.03,124.99,48.5601969]
[1744792868619,0.03,125.03,125.02,33.2093729]
[1744792868833,0.03,125.03,125.02,59.2093729]
[1744792869922,0.03,125.03,125.02,26.0]
[1744792870949,34.58972404,125.03,124.96,22.56228485]
[1744792871122,14.55972404,125.02,124.97,14.55972404]
[1744792871324,20.03,125.03,124.97,40.55972404]
[1744792871524,14.55972404,125.02,124.97,40.55972404]
[1744792871825,0.03,125.03,124.99,14.55972404]
[1744792872130,0.03,125.03,125.0,22.55945296]
[1744792872331,0.03,125.03,125.02,40.55972404]
[1744792872541,0.03,125.03,125.02,26.0]
[1744792873059,0.03,125.03,125.02,40.55972404]
[1744792873241,0.03,125.03,125.02,60.7655729]
[1744792874138,0.03,125.03,125.02,68.7642931]
[1744792875076,0.03,125.03,125.02,26.0]
[1744792875249,0.03,125.03,125.01,7.99927004]
[1744792876461,0.03,125.03,125.01,22.55899408]
[1744792876871,0.03,125.03,125.02,59.2093729]
[1744792877171,0.03,125.03,125.02,67.85601075]
[1744792877368,0.03,125.03,125.02,91.06237264]
[1744792877669,0.03,125.03,125.02,67.85601075]
[1744792877869,1e-08,125.03,125.02,65.06237264]
[1744792878051,0.03,125.05,125.03,18.64964886]
[1744792878255,0.03,125.07,125.06,26.6458107]
[1744792878458,1e-08,125.07,125.06,49.85217259]
[1744792878661,0.03,125.09,125.06,51.19292833]
[1744792878839,0.03,125.09,125.08,67.85601075]
[1744792879041,1e-08,125.09,125.08,65.06237264]
[1744792879248,0.03,125.14,125.12,26.0]
[1744792879948,0.03,125.14,125.12,49.20636189]
[1744792880164,23.20636189,125.13,125.08,23.20636189]
[1744792880375,23.20636189,125.11,125.08,26.0]
[1744792880665,12.07,125.14,125.1,23.20636189]
[1744792881167,35.27636189,125.14,125.09,23.20636189]
[1744792882170,12.07,125.14,125.1,23.20636189]
[1744792882342,12.07,125.14,125.1,31.19981411]
[1744792882769,35.27636189,125.14,125.09,31.20032344]
[1744792882965,23.20636189,125.12,125.08,26.0]
[1744792883147,20.0,125.11,125.05,7.99680127]
[1744792883348,23.20636189,125.1,125.05,57.20316316]
[1744792883955,23.20636189,125.08,125.04,7.99724574]
[1744792884170,20.0,125.09,125.04,57.20360763]
[1744792884364,23.20636189,125.09,125.05,31.20285955]
[1744792884566,121.4111,125.13,125.07,49.20636189]
[1744792884772,23.20636189,125.12,125.07,49.20636189]
[1744792885487,23.20636189,125.11,125.06,23.20636189]
[1744792885663,23.20636189,125.07,124.96,40.01076376]
[1744792885865,23.20636189,125.07,125.02,23.20636189]
[1744792886158,23.20636189,125.09,125.04,23.20636189]
[1744792886680,20.0,125.11,125.06,23.20636189]
[1744792886984,43.20636189,125.11,125.06,23.20636189]
[1744792887370,20.0,125.11,125.07,23.20636189]
[1744792887572,20.0,125.11,125.05,33.99680127]
[1744792887785,20.0,125.11,125.06,23.20636189]
[1744792887961,23.20636189,125.12,125.07,23.20636189]
[1744792888682,23.20636189,125.12,125.08,7.99488327]
[1744792888881,0.03,125.14,125.09,26.0]
[1744792889083,23.20636189,125.13,125.09,26.0]
[1744792889261,23.20636189,125.12,125.07,9.61251018]
[1744792889456,23.20636189,125.12,125.07,58.81887207]
[1744792889786,23.20636189,125.11,125.07,26.0]
[1744792890092,23.20636189,125.1,125.05,57.20316316]
[1744792890259,23.20636189,125.11,125.06,23.20636189]
[1744792890579,82.9,125.13,125.1,23.20636189]
[1744792890872,23.20636189,125.13,125.09,26.0]
[1744792891079,23.20636189,125.12,125.08,7.99464797]
[1744792891483,23.20636189,125.13,125.08,31.20100986]
[1744792891963,43.23636189,125.14,125.09,23.20636189]
[1744792892158,0.03,125.14,125.1,23.20636189]
[1744792892350,0.03,125.14,125.09,18.64964886]
[1744792892553,23.23636189,125.14,125.09,41.85601075]
[1744792892855,23.20636189,125.13,125.08,31.20100986]
[1744792893180,7.99174177,125.13,125.07,33.99529884]
[1744792893356,20.03,125.14,125.09,23.20636189]
[1744792893557,43.23636189,125.14,125.09,23.20636189]
[1744792893757,20.03,125.14,125.09,23.20636189]
[1744792893952,43.23636189,125.14,125.09,23.20636189]
[1744792894279,0.03,125.14,125.1,23.20636189]
[1744792894479,23.23636189,125.14,125.1,26.0]
[1744792895274,23.23636189,125.14,125.1,33.99331847]
[1744792896183,23.23636189,125.14,125.13,23.20636189]
[1744792896184,0.03,125.14,125.13,23.20636189]
[1744792896681,0.03,125.14,125.13,67.85601075]
[1744792896879,0.03,125.14,125.13,49.20636189]
[1744792897061,0.03,125.14,125.13,67.85601075]
[1744792897381,0.03,125.14,125.13,75.84769939]
[1744792898459,0.03,125.16,125.15,26.0]
[1744792898678,0.03,125.16,125.15,49.20636189]
[1744792899184,0.03,125.16,125.15,57.19677339]
[1744792901493,0.03,125.16,125.15,33.9904115]
[1744792901791,0.03,125.16,125.15,7.9904115]
[1744792901990,0.03,125.16,125.13,26.0]
[1744792902175,0.03,125.16,125.13,23.20636189]
[1744792902486,0.03,125.16,125.14,23.20636189]
[1744792902691,0.03,125.16,125.15,23.20636189]
[1744792902993,20.0,125.2,125.15,148.27987339]
[1744792903160,6.3564,125.31,125.15,148.27987339]
[1744792903161,23.20636189,125.33,125.25,26.0]
[1744792903368,23.20636189,125.29,125.21,8.0831]
[1744792903588,23.20636189,125.26,125.21,1.6188]
[1744792903761,43.20636189,125.3,125.22,49.20636189]
[1744792903964,23.20636189,125.25,125.19,23.20636189]
[1744792904186,23.20636189,125.27,125.21,23.20636189]
[1744792904491,23.20636189,125.27,125.22,23.20636189]
[1744792904668,18.9022,125.29,125.22,23.20636189]
[1744792904866,23.20636189,125.27,125.22,23.20636189]
[1744792905092,23.20636189,125.26,125.22,7.98575569]
[1744792905478,23.20636189,125.24,125.2,7.98668563]
[1744792905897,23.20636189,125.25,125.2,31.19304752]
[1744792906091,101.8322,125.29,125.22,23.20636189]
[1744792906302,18.9322,125.29,125.22,23.20636189]
[1744792906504,23.20636189,125.27,125.22,23.20636189]
[1744792907214,0.03,125.29,125.24,26.0]
[1744792907374,0.03,125.29,125.25,18.64964886]
[1744792907704,0.03,125.29,125.28,23.20636189]
[1744792908405,0.03,125.29,125.28,67.85601075]
[1744792908903,2.9409955,125.37,125.32,26.0]
[1744792909087,2.9409955,125.37,125.35,31.18377007]
[1744792909285,23.20636189,125.36,125.33,7.9789356]
[1744792909492,2.9409955,125.37,125.33,7.9789356]
[1744792909681,26.14735739,125.37,125.33,7.9789356]
[1744792909886,24.64735739,125.37,125.33,7.9789356]
[1744792910086,1.4409955,125.37,125.35,23.20636189]
[1744792911608,1.4409955,125.37,125.32,18.64964886]
[1744792911913,1.4409955,125.37,125.36,23.20636189]
[1744792913095,1.4409955,125.37,125.35,23.20636189]
[1744792913517,1.4409955,125.37,125.36,23.20636189]
[1744792914079,1.4409955,125.37,125.34,7.97796808]
[1744792914402,1.4409955,125.37,125.35,23.20636189]
[1744792914610,1.4409955,125.37,125.36,23.20636189]
[1744792914914,1.4409955,125.37,125.36,41.85601075]
[1744792915295,1.4409955,125.37,125.36,75.83303691]
[1744792915694,1.4409955,125.37,125.36,52.62667502]
[1744792915907,1.4409955,125.37,125.36,75.83303691]
[1744792916107,1.4409955,125.37,125.36,57.18338805]
[1744792916287,1.4409955,125.37,125.36,75.83303691]
[1744792916483,1.4409955,125.37,125.35,23.20636189]
[1744792916687,1.4409955,125.37,125.34,49.20636189]
[1744792916912,1.4409955,125.37,125.33,12.72]
[1744792917095,24.64735739,125.37,125.33,12.72]
[1744792917597,24.64735739,125.37,125.31,26.0]
[1744792917598,23.20636189,125.35,125.31,49.20636189]
[1744792917904,23.20636189,125.35,125.31,31.18632035]
[1744792918210,23.20636189,125.36,125.31,31.18632035]
[1744792918401,9.41761524,125.37,125.31,31.18632035]
[1744792918599,23.20636189,125.36,125.31,7.97995846]
[1744792918815,23.20636189,125.35,125.3,57.1869874]
[1744792919309,23.20636189,125.36,125.31,23.20636189]
[1744792919496,1.4409955,125.37,125.32,23.20636189]
[1744792919811,23.20636189,125.36,125.32,23.20636189]
[1744792920014,23.20636189,125.35,125.3,33.98062551]
[1744792920231,23.20636189,125.33,125.3,33.98062551]
[1744792920409,23.20636189,125.31,125.28,7.98170083]
[1744792920723,148.18481684,125.37,125.28,7.98170083]
[1744792920900,105.03748024,125.37,125.3,23.20636189]
[1744792921100,23.20636189,125.35,125.3,23.20636189]
[1744792921312,23.20636189,125.34,125.29,23.20636189]
[1744792921704,23.20636189,125.32,125.28,31.18806272]
[1744792921913,23.20636189,125.3,125.27,7.98252529]
[1744792922109,23.20636189,125.29,125.26,7.98312551]
[1744792922515,22.13748024,125.37,125.28,49.20636189]
[1744792922714,22.13748024,125.37,125.31,23.20636189]
[1744792922931,23.20636189,125.36,125.31,23.20636189]
[1744792923112,1.4409955,125.37,125.31,26.0]
[1744792923306,1.4409955,125.37,125.34,23.20636189]
[1744792923502,1.4409955,125.37,125.32,26.0]
[1744792923503,23.20636189,125.36,125.32,26.0]
[1744792923843,23.20636189,125.35,125.31,23.20636189]
[1744792924004,9.41741128,125.37,125.31,23.20636189]
[1744792924201,9.41741128,125.37,125.3,23.20636189]
[1744792924421,23.20636189,125.31,125.26,1.5479]
[1744792924700,23.20636189,125.3,125.25,23.20636189]
[1744792924903,23.20636189,125.3,125.26,7.98321145]
[1744792925119,23.20636189,125.27,125.23,7.98503279]
[1744792925325,90.88086206,125.3,125.23,31.19139468]
[1744792925506,23.20636189,125.28,125.23,57.19139468]
[1744792925839,23.20636189,125.27,125.23,33.98503279]
[1744792926005,23.20636189,125.27,125.23,57.19139468]
[1744792926205,23.20636189,125.27,125.23,31.19139468]
[1744792926511,7.98252394,125.28,125.22,7.98594473]
[1744792926719,23.20636189,125.24,125.21,7.98636732]
[1744792926926,23.20636189,125.23,125.2,7.98699543]
[1744792927127,23.20636189,125.24,125.2,7.98699543]
[1744792927433,82.9,125.27,125.2,31.19335732]
[1744792927730,82.9,125.27,125.2,7.98699543]
[1744792927731,23.20636189,125.23,125.2,7.98699543]
[1744792927917,23.20636189,125.25,125.2,31.19335732]
[1744792928120,23.20636189,125.25,125.2,7.98699543]
[1744792928321,90.88319329,125.27,125.21,31.19248233]
[1744792928624,82.9,125.31,125.25,23.20636189]
[1744792928826,23.20636189,125.3,125.26,23.20636189]
[1744792929201,82.9,125.31,125.23,18.64964886]
[1744792929428,23.20636189,125.3,125.25,23.20636189]
[1744792929634,23.20636189,125.28,125.24,23.20636189]
[1744792929841,82.9,125.31,125.26,23.20636189]
[1744792930014,82.9,125.31,125.23,18.64964886]
[1744792930015,23.20636189,125.29,125.25,23.20636189]
[1744792930221,82.9,125.31,125.24,23.20636189]
[1744792930423,23.20636189,125.29,125.25,7.98403193]
[1744792930839,82.9,125.31,125.26,23.20636189]
[1744792931028,23.20636189,125.33,125.26,18.64964886]
[1744792931348,89.4144,125.35,125.3,23.20636189]
[1744792931533,23.20636189,125.34,125.29,23.20636189]
[1744792932043,29.72076189,125.35,125.3,23.20636189]
[1744792932210,14.4921732,125.35,125.29,23.20636189]
[1744792932533,7.97851807,125.34,125.29,31.18773101]
[1744792932726,20.0,125.35,125.28,31.18832326]
[1744792932917,12.72,125.36,125.3,23.20636189]
[1744792933116,12.72,125.36,125.28,7.98196137]
[1744792933117,23.20636189,125.33,125.28,33.98196137]
[1744792933317,23.20636189,125.33,125.28,57.18832326]
[1744792933526,20.6971893,125.36,125.29,23.20636189]
[1744792933725,9.41757002,125.37,125.28,33.98196137]
[1744792934032,9.4178556,125.37,125.28,27.93726149]
[1744792934342,23.20636189,125.33,125.28,57.18832326]
[1744792934838,7.9771319,125.36,125.29,23.20636189]
[1744792935047,23.20636189,125.34,125.29,23.20636189]
[1744792935749,7.9771319,125.36,125.28,53.93726149]
[1744792936046,1.4409955,125.37,125.32,23.20636189]
[1744792936222,23.20636189,125.36,125.31,26.0]
[1744792936543,1.4409955,125.37,125.34,23.20636189]
[1744792936840,1.4409955,125.37,125.32,27.92850302]
[1744792936841,1.4409955,125.37,125.35,23.20636189]
[1744792937640,1.4409955,125.37,125.36,23.20636189]
[1744792938875,1.4409955,125.37,125.36,75.83303691]
[1744792939151,0.03,125.43,125.39,23.20636189]
[1744792939531,0.03,125.43,125.41,23.20636189]
[1744792939724,0.03,125.43,125.38,13.18]
[1744792940358,0.03,125.43,125.39,23.20636189]
[1744792940651,0.03,125.43,125.37,20.15254886]
[1744792940652,23.23636189,125.43,125.37,20.15254886]
[1744792940856,0.03,125.43,125.41,23.20636189]
[1744792941147,0.03,125.43,125.42,23.20636189]
[1744792941367,0.03,125.43,125.41,26.0]
[1744792941526,0.03,125.43,125.41,49.20636189]
[1744792941730,0.03,125.43,125.42,23.20636189]
[1744792941930,0.03,125.43,125.41,26.0]
[1744792942663,0.03,125.43,125.42,23.20636189]
[1744792942863,0.03,125.43,125.42,31.1795719]
[1744792944134,23.23636189,125.43,125.38,7.9757537]
[1744792944352,23.23636189,125.43,125.36,23.20636189]
[1744792944659,23.20636189,125.41,125.36,23.20636189]
[1744792944864,0.03,125.43,125.38,31.18211559]
[1744792945069,23.20636189,125.42,125.38,31.18211559]
[1744792945570,23.23636189,125.43,125.38,31.18211559]
[1744792945864,23.20636189,125.41,125.36,7.97702616]
[1744792946042,23.20636189,125.41,125.36,31.18338805]
[1744792946246,23.20636189,125.41,125.36,7.97702616]
[1744792946462,23.20636189,125.4,125.36,7.97702616]
[1744792946654,23.20636189,125.38,125.34,7.97829902]
[1744792946956,23.20636189,125.38,125.34,33.97829902]
[1744792947347,23.20636189,125.39,125.34,57.18466091]
[1744792947548,90.87335563,125.42,125.36,23.20636189]
[1744792947765,23.20636189,125.41,125.37,23.20636189]
[1744792948069,27.97335563,125.42,125.34,33.97829902]
[1744792948241,23.20636189,125.38,125.34,33.97829902]
[1744792948438,130.80638066,125.42,125.33,7.97869446]
[1744792948652,23.20636189,125.36,125.31,31.18657097]
[1744792948851,23.20636189,125.39,125.34,23.20636189]
[1744792949058,110.87335563,125.42,125.35,31.18349261]
[1744792949249,23.20636189,125.39,125.35,31.18349261]
[1744792949461,0.03,125.43,125.36,18.64964886]
[1744792949648,23.20636189,125.42,125.35,27.92128708]
[1744792949845,8.00286381,125.43,125.37,23.20636189]
[1744792950168,23.20636189,125.4,125.35,7.97713072]
[1744792950371,28.00286381,125.43,125.35,57.18349261]
[1744792950877,23.20636189,125.4,125.35,57.18349261]
[1744792951051,0.03,125.43,125.37,23.20636189]
[1744792951246,0.03,125.43,125.38,23.20636189]
[1744792951850,23.20636189,125.42,125.37,23.20636189]
[1744792952054,0.03,125.43,125.39,23.20636189]
[1744792952259,23.23636189,125.43,125.38,23.20636189]
[1744792953052,23.23636189,125.43,125.39,7.97511763]
[1744792953254,23.20636189,125.42,125.39,7.97511763]
[1744792953977,0.03,125.43,125.39,7.97511763]
[1744792954277,0.03,125.43,125.41,23.20636189]
[1744792954644,0.03,125.43,125.39,27.91291171]
[1744792954852,0.03,125.43,125.42,23.20636189]
[1744792955169,0.03,125.43,125.42,31.1795719]
[1744792955553,0.03,125.43,125.42,49.82922076]
[1744792956872,26.301,125.56,125.46,18.64964886]
[1744792957047,23.20636189,125.54,125.5,7.96812749]
[1744792957360,6.301,125.56,125.5,7.96812749]
[1744792957756,6.331,125.56,125.5,51.0948081]
[1744792957957,23.20636189,125.55,125.5,51.0948081]
[1744792958162,0.03,125.56,125.5,51.0948081]
[1744792958365,23.20636189,125.55,125.5,7.96812749]
[1744792958564,23.20636189,125.57,125.52,23.20636189]
[1744792958761,23.20636189,125.55,125.5,33.96812749]
[1744792959075,23.20636189,125.56,125.52,7.96685787]
[1744792959260,23.20636189,125.55,125.52,7.96685787]
[1744792959462,23.20636189,125.54,125.49,7.96876245]
[1744792959664,7.96434786,125.56,125.49,7.96876245]
[1744792959665,23.20636189,125.53,125.49,7.96876245]
[1744792959855,33.18,125.58,125.51,23.20636189]
[1744792960059,33.18,125.58,125.49,7.96876245]
[1744792960060,7.96241738,125.59,125.49,27.89066857]
[1744792960270,23.20636189,125.56,125.51,23.20636189]
[1744792960470,23.20636189,125.54,125.49,7.96876245]
[1744792960767,23.20636189,125.53,125.49,7.96876245]
[1744792960974,33.18,125.57,125.49,31.17512434]
[1744792961162,23.20636189,125.53,125.49,7.96876245]
[1744792961365,7.96463693,125.56,125.49,31.17512434]
[1744792961564,7.96463693,125.56,125.49,7.96876245]
[1744792961763,23.20636189,125.53,125.49,7.96876245]
[1744792961959,23.20636189,125.5,125.42,1.6246]
[1744792962158,20.0,125.53,125.43,7.97257434]
[1744792962159,23.20636189,125.46,125.43,7.97257434]
[1744792962378,49.22736189,125.51,125.43,7.97257434]
[1744792962582,6.021,125.51,125.43,53.9040102]
[1744792962798,23.20636189,125.5,125.45,23.20636189]
[1744792962968,6.021,125.51,125.45,23.20636189]
[1744792963166,6.021,125.51,125.46,7.97066794]
[1744792963167,23.20636189,125.5,125.46,7.97066794]
[1744792964391,23.20636189,125.51,125.46,31.17702983]
[1744792964683,23.20636189,125.52,125.47,23.20636189]
[1744792964886,23.20636189,125.53,125.48,23.20636189]
[1744792965075,13.16,125.56,125.5,23.20636189]
[1744792965289,23.20636189,125.56,125.51,31.17333311]
[1744792965468,7.96447407,125.56,125.51,7.96697122]
[1744792965675,23.20636189,125.54,125.51,7.96697122]
[1744792965888,23.20636189,125.54,125.49,7.96876245]
[1744792966194,23.20636189,125.54,125.49,31.17512434]
[1744792966401,7.96447407,125.56,125.49,31.17512434]
[1744792966576,23.20636189,125.54,125.49,31.17512434]
[1744792966981,23.20636189,125.53,125.49,7.96876245]
[1744792967190,7.96447407,125.56,125.47,7.97003267]
[1744792967399,23.20636189,125.52,125.47,31.17639456]
[1744792967702,20.0,125.54,125.47,7.97003267]
[1744792967899,23.20636189,125.49,125.46,7.97066794]
[1744792968082,23.20636189,125.48,125.46,7.97066794]
[1744792968281,20.0,125.54,125.44,43.13612503]
[1744792968487,20.0,125.54,125.45,7.97102886]
[1744792968799,20.0,125.54,125.46,23.20636189]
[1744792968800,23.20636189,125.51,125.46,23.20636189]
[1744792969007,20.0,125.54,125.46,23.20636189]
[1744792969388,23.20636189,125.51,125.47,7.97003267]
[1744792969585,23.20636189,125.53,125.48,23.20636189]
[1744792970298,23.20636189,125.5,125.47,7.97003267]
[1744792970479,23.20636189,125.48,125.43,7.97257434]
[1744792970797,23.20636189,125.45,125.42,9.59756863]
[1744792971184,33.6,125.5,125.41,14.0519921]
[1744792971385,7.96876245,125.49,125.41,37.25835399]
[1744792971693,7.96876245,125.49,125.42,23.20636189]
[1744792971879,23.20636189,125.46,125.41,14.0519921]
[1744792972083,23.20636189,125.46,125.41,37.25835399]
[1744792972297,23.20636189,125.46,125.41,14.0519921]
[1744792972506,23.20636189,125.46,125.41,37.25835399]
[1744792972711,23.20636189,125.44,125.41,7.9735921]
[1744792972998,23.20636189,125.44,125.39,69.14407028]
[1744792972999,23.20636189,125.44,125.4,7.97420706]
[1744792973401,23.20636189,125.43,125.4,7.97420706]
[1744792973985,23.20636189,125.45,125.4,7.97420706]
[1744792974197,23.20636189,125.45,125.4,31.18056895]
[1744792974401,7.96749263,125.51,125.43,23.20636189]
[1744792974705,23.20636189,125.49,125.44,23.20636189]
[1744792974907,23.20636189,125.5,125.41,18.64964886]
[1744792975087,23.20636189,125.49,125.44,23.20636189]
[1744792975409,23.20636189,125.49,125.44,31.17820727]
[1744792976090,23.20636189,125.48,125.44,31.17820727]
[1744792976310,23.20636189,125.48,125.44,7.97184538]
[1744792976608,7.96838136,125.5,125.44,7.97184538]
[1744792976905,23.20636189,125.48,125.44,7.97184538]
[1744792977097,23.20636189,125.48,125.44,23.20636189]
[1744792977407,23.20636189,125.49,125.44,23.20636189]
[1744792977596,7.96773192,125.51,125.44,23.20636189]
[1744792977793,34.62047916,125.52,125.45,23.20636189]
[1744792977998,23.20636189,125.5,125.45,23.20636189]
[1744792978601,23.20636189,125.49,125.44,23.20636189]
[1744792979078,23.20636189,125.49,125.43,6.6068]
[1744792979079,23.20636189,125.46,125.4,26.54272288]
[1744792979405,23.20636189,125.46,125.41,31.18020767]
[1744792979586,23.20636189,125.47,125.42,23.20636189]
[1744792980421,23.20636189,125.5,125.45,23.20636189]
[1744792980586,23.20636189,125.49,125.44,23.20636189]
[1744792980782,23.20636189,125.47,125.43,23.20636189]
[1744792981105,23.20636189,125.48,125.43,23.20636189]
[1744792981477,23.20636189,125.47,125.41,27.90846024]
[1744792981701,23.20636189,125.47,125.42,23.20636189]
[1744792982184,23.20636189,125.53,125.45,26.0]
[1744792982379,27.96431984,125.56,125.45,26.0]
[1744792982603,23.20636189,125.53,125.48,23.20636189]
[1744792982984,23.20636189,125.53,125.45,26.0]
[1744792982985,23.20636189,125.53,125.47,23.20636189]
[1744792983181,23.20636189,125.52,125.48,7.96939751]
[1744792983417,23.20636189,125.5,125.44,6.2547]
[1744792983596,23.20636189,125.49,125.44,29.46106189]
[1744792983784,6.0069,125.53,125.45,31.17743282]
[1744792983986,23.20636189,125.51,125.45,31.17743282]
[1744792984198,23.1237542,125.55,125.48,23.20636189]
[1744792984511,23.1237542,125.55,125.45,7.97107093]
[1744792984512,23.20636189,125.52,125.46,23.20636189]
[1744792984808,23.20636189,125.51,125.46,23.20636189]
[1744792984984,23.20636189,125.51,125.45,51.10569109]
[1744792985179,7.96762764,125.51,125.45,7.97107093]
[1744792985416,23.20636189,125.5,125.45,31.17743282]
[1744792985911,23.20636189,125.51,125.45,31.17743282]
[1744792986409,23.20636189,125.52,125.46,23.20636189]
[1744792986713,23.20636189,125.51,125.46,23.20636189]
[1744792987218,23.20636189,125.51,125.47,7.97003267]
[1744792987712,23.20636189,125.5,125.45,7.9713033]
[1744792987888,23.20636189,125.48,125.44,7.97186017]
[1744792988613,23.20636189,125.48,125.43,32.74394421]
[1744792988815,23.20636189,125.47,125.43,9.53758232]
[1744792989015,23.20636189,125.49,125.43,32.74394421]
[1744792989396,23.20636189,125.48,125.43,52.67538007]
[1744792989819,23.20636189,125.47,125.43,29.46901818]
[1744792990193,23.20636189,125.47,125.43,9.53758232]
[1744792990795,82.9,125.5,125.44,23.20636189]
[1744792991109,82.9,125.5,125.43,9.53758232]
[1744792991110,36.80636189,125.51,125.46,23.20636189]
[1744792991310,23.20636189,125.5,125.43,29.46901818]
[1744792991522,23.20636189,125.49,125.44,23.20636189]
[1744792991692,23.20636189,125.5,125.45,23.20636189]
[1744792991888,13.6,125.51,125.46,23.20636189]
[1744792992093,23.20636189,125.51,125.46,23.20636189]
[1744792992423,31.17402857,125.51,125.46,23.20636189]
[1744792992592,23.20636189,125.49,125.43,55.46901818]
[1744792992791,23.20636189,125.49,125.43,29.46901818]
[1744792993035,23.20636189,125.48,125.43,32.74394421]
[1744792994015,23.20636189,125.46,125.43,9.53758232]
[1744792994423,23.20636189,125.47,125.43,9.53758232]
[1744792995294,23.20636189,125.46,125.43,9.53758232]
[1744792995491,23.20636189,125.44,125.41,6.4555]
[1744792995691,23.20636189,125.45,125.41,6.4555]
[1744792996107,23.20636189,125.44,125.41,7.97384578]
[1744792996616,23.20636189,125.45,125.41,7.97384578]
[1744792997823,0.03,125.55,125.45,8.0621]
[1744792998018,0.03,125.55,125.49,23.20636189]
[1744792998201,23.20636189,125.54,125.48,49.20636189]
[1744792998729,0.03,125.55,125.5,23.20636189]
[1744792998905,0.03,125.55,125.52,23.20636189]
[1744792999297,0.03,125.55,125.52,7.96671325]
[1744792999611,0.03,125.55,125.52,41.98823454]
[1744793000012,0.03,125.55,125.47,33.97003267]
[1744793000315,0.03,125.55,125.48,22.85233177]
[1744793000523,0.03,125.55,125.52,34.02152129]
[1744793001203,0.03,125.55,125.52,41.98825799]
[1744793001404,0.03,125.55,125.53,34.02152129]
[1744793001618,0.03,125.55,125.52,41.98825799]
[1744793002206,0.03,125.55,125.52,7.9667367]
[1744793002828,0.03,125.55,125.52,41.98825799]
[1744793002997,0.03,125.55,125.53,34.02152129]
[1744793003198,0.03,125.55,125.54,41.98710994]
[1744793003517,0.03,125.55,125.54,7.96558865]
[1744793003912,0.03,125.55,125.54,41.98710994]
[1744793004828,2.9409955,125.62,125.58,1.6164]
[1744793005128,2.9409955,125.62,125.61,41.98267088]
[1744793005324,20.88702705,125.72,125.65,34.02152129]
[1744793005325,20.0,125.72,125.65,34.02152129]
[1744793005533,34.02152129,125.69,125.64,34.02152129]
[1744793006128,34.02152129,125.67,125.62,34.02152129]
[1744793006299,13.46,125.68,125.61,7.96114959]
[1744793006300,34.02152129,125.66,125.61,7.96114959]
[1744793006500,34.02152129,125.67,125.62,34.02152129]
[1744793006808,40.60441649,125.67,125.61,7.96114959]
[1744793007135,40.60441649,125.67,125.62,34.02152129]
[1744793007428,40.60441649,125.67,125.62,41.98198491]
[1744793007635,34.02152129,125.66,125.61,41.98246888]
[1744793007931,34.02152129,125.66,125.59,19.90594131]
[1744793007932,34.02152129,125.64,125.59,41.98393867]
[1744793008103,6.5828952,125.67,125.63,34.02152129]
[1744793008302,6.5828952,125.67,125.64,34.02152129]
[1744793009723,6.5828952,125.67,125.63,7.95954812]
[1744793009900,34.02152129,125.66,125.62,7.96044541]
[1744793010106,34.02152129,125.63,125.57,7.96368559]
[1744793010321,34.02152129,125.62,125.57,41.98520688]
[1744793011221,34.02152129,125.63,125.58,34.02152129]
[1744793011415,13.44,125.64,125.6,34.02152129]
[1744793011634,13.44,125.64,125.61,7.96114959]
[1744793012021,47.46152129,125.64,125.61,7.96114959]
[1744793012244,13.44,125.64,125.61,7.96114959]
[1744793012925,13.44,125.64,125.6,7.96155576]
[1744793013132,13.44,125.64,125.6,41.98307705]
[1744793013323,13.44,125.64,125.6,7.96155576]
[1744793013733,47.46152129,125.64,125.6,7.96155576]
[1744793013965,47.46152129,125.64,125.57,19.90921398]
[1744793013966,34.02152129,125.64,125.58,7.96305144]
[1744793014237,34.02152129,125.63,125.58,41.98457273]
[1744793015029,34.02152129,125.62,125.58,7.96305144]
[1744793015447,34.02152129,125.63,125.58,41.98457273]
[1744793016028,82.9,125.64,125.59,34.02152129]
[1744793016745,82.9,125.64,125.6,34.02152129]
[1744793016944,82.9,125.64,125.61,34.02152129]
[1744793017827,34.02152129,125.66,125.61,34.02152129]
[1744793018147,34.02152129,125.66,125.62,7.96051584]
[1744793019346,6.5828952,125.67,125.65,22.98821692]
[1744793019547,6.5828952,125.67,125.66,22.98821692]
[1744793019748,6.5828952,125.67,125.65,22.98821692]
[1744793019952,29.57111212,125.67,125.62,27.86180544]
[1744793020144,29.57111212,125.67,125.62,50.85002236]
[1744793020326,29.57111212,125.67,125.62,30.94873276]
[1744793021029,6.5828952,125.67,125.62,30.94873276]
[1744793021230,40.55069894,125.67,125.62,41.92831958]
[1744793021426,33.96780374,125.65,125.61,7.96107973]
[1744793021630,33.96780374,125.66,125.61,41.92888347]